[Event "Titled Tuesday Blitz January 31 Late 2023"]
[White "Pino Perez, Lazaro"]
[Black "TheKnightOfBosnia"]
[WhiteFideId "3517055"]
[WhiteElo "2142"]
[BlackElo "2502"]
[Result "0-1"]
[Round "05"]
[TimeControl "180+2"]
[Date "2023.01.31"]
[WhiteClock "0:00:02"]
[BlackClock "0:00:28"]

1. d4 {[%clk 0:03:00]}  Nf6 {[%clk 0:03:00]} 2. Bf4 {[%clk 0:03:00]}  c5 {[%clk 0:02:59]} 3. d5 {[%clk 0:03:00]}  g6 {[%clk 0:02:58]} 4. Nc3 {[%clk 0:02:59]}  Bg7 {[%clk 0:02:57]} 5. e4 {[%clk 0:03:00]}  d6 {[%clk 0:02:56]} 6. Be2 {[%clk 0:03:00]}  O-O {[%clk 0:02:56]} 7. Nf3 {[%clk 0:03:00]}  a6 {[%clk 0:02:50]} 8. a4 {[%clk 0:02:59]}  b6 {[%clk 0:02:41]} 9. O-O {[%clk 0:02:57]}  Bb7 {[%clk 0:02:41]} 10. Nd2 {[%clk 0:02:16]}  Nbd7 {[%clk 0:02:40]} 11. Nc4 {[%clk 0:02:12]}  Rb8 {[%clk 0:02:36]} 12. f3 {[%clk 0:02:03]}  Nh5 {[%clk 0:02:20]} 13. Be3 {[%clk 0:02:02]}  Ne5 {[%clk 0:02:08]} 14. Nxe5 {[%clk 0:01:57]}  dxe5 {[%clk 0:02:06]} 15. Bc4 {[%clk 0:01:31]}  Nf4 {[%clk 0:02:05]} 16. g3 {[%clk 0:01:26]}  Nh5 {[%clk 0:01:48]} 17. Qe2 {[%clk 0:01:26]}  Nf6 {[%clk 0:01:47]} 18. Bxa6 {[%clk 0:01:24]}  Ne8 {[%clk 0:01:38]} 19. Bxb7 {[%clk 0:01:12]}  Rxb7 {[%clk 0:01:39]} 20. Nb5 {[%clk 0:01:12]}  Nd6 {[%clk 0:01:31]} 21. Ra2 {[%clk 0:00:49]}  Qd7 {[%clk 0:01:28]} 22. Rfa1 {[%clk 0:00:48]}  Ra8 {[%clk 0:01:27]} 23. b3 {[%clk 0:00:33]}  h5 {[%clk 0:01:24]} 24. h4 {[%clk 0:00:30]}  f5 {[%clk 0:01:20]} 25. Nxd6 {[%clk 0:00:16]}  exd6 {[%clk 0:01:20]} 26. Kg2 {[%clk 0:00:17]}  f4 {[%clk 0:01:17]} 27. Bf2 {[%clk 0:00:12]}  Rf8 {[%clk 0:01:15]} 28. a5 {[%clk 0:00:10]}  fxg3 {[%clk 0:01:09]} 29. Bxg3 {[%clk 0:00:09]}  bxa5 {[%clk 0:01:08]} 30. Rxa5 {[%clk 0:00:10]}  Bf6 {[%clk 0:01:06]} 31. Ra6 {[%clk 0:00:10]}  Qe7 {[%clk 0:01:05]} 32. Qe1 {[%clk 0:00:09]}  Kh7 {[%clk 0:00:59]} 33. Ra8 {[%clk 0:00:08]}  Rf7 {[%clk 0:00:54]} 34. R8a6 {[%clk 0:00:07]}  g5 {[%clk 0:00:53]} 35. hxg5 {[%clk 0:00:06]}  Bxg5 {[%clk 0:00:54]} 36. Rc6 {[%clk 0:00:06]}  Rg7 {[%clk 0:00:53]} 37. Kh2 {[%clk 0:00:06]}  h4 {[%clk 0:00:52]} 38. Bf2 {[%clk 0:00:06]}  Bf4+ {[%clk 0:00:50]} 39. Kh1 {[%clk 0:00:06]}  Bg3 {[%clk 0:00:44]} 40. Raa6 {[%clk 0:00:05]}  Rd7 {[%clk 0:00:43]} 41. Qf1 {[%clk 0:00:05]}  Qf6 {[%clk 0:00:31]} 42. Qg2 {[%clk 0:00:04]}  Bxf2 {[%clk 0:00:28]} 43. Qxf2 {[%clk 0:00:05]}  Rg3 {[%clk 0:00:28]} 44. Qh2 {[%clk 0:00:02]}  Qxf3+ {[%clk 0:00:28]} 0-1


[Site "https://www.chess.com"]

[Event "Titled Tuesday Blitz January 31 Late 2023"]
[White "Fernandez Siles, Luis"]
[Black "Fiorito, Francisco"]
[WhiteFideId "2209420"]
[BlackFideId "180165"]
[WhiteElo "2218"]
[BlackElo "2305"]
[Result "1-0"]
[Round "05"]
[TimeControl "180+2"]
[Date "2023.01.31"]
[WhiteClock "0:00:25"]
[BlackClock "0:00:11"]

1. d4 {[%clk 0:03:00]}  Nf6 {[%clk 0:02:58]} 2. c4 {[%clk 0:03:00]}  b6 {[%clk 0:02:58]} 3. Nc3 {[%clk 0:02:59]}  Bb7 {[%clk 0:02:59]} 4. Qc2 {[%clk 0:02:56]}  d5 {[%clk 0:02:59]} 5. cxd5 {[%clk 0:02:53]}  Nxd5 {[%clk 0:03:00]} 6. e4 {[%clk 0:02:53]}  Nxc3 {[%clk 0:03:00]} 7. bxc3 {[%clk 0:02:54]}  e6 {[%clk 0:03:01]} 8. Nf3 {[%clk 0:02:49]}  c5 {[%clk 0:03:01]} 9. Bb5+ {[%clk 0:02:48]}  Bc6 {[%clk 0:03:01]} 10. Bd3 {[%clk 0:02:43]}  Be7 {[%clk 0:03:01]} 11. O-O {[%clk 0:02:38]}  O-O {[%clk 0:03:01]} 12. a4 {[%clk 0:02:31]}  Nd7 {[%clk 0:02:55]} 13. d5 {[%clk 0:02:22]}  exd5 {[%clk 0:02:50]} 14. exd5 {[%clk 0:02:22]}  Bxd5 {[%clk 0:02:51]} 15. Bxh7+ {[%clk 0:02:22]}  Kh8 {[%clk 0:02:52]} 16. Be4 {[%clk 0:02:22]}  Nf6 {[%clk 0:02:39]} 17. Bxd5 {[%clk 0:02:19]}  Qxd5 {[%clk 0:02:40]} 18. Re1 {[%clk 0:02:10]}  Bd6 {[%clk 0:02:36]} 19. Bg5 {[%clk 0:02:05]}  Nh7 {[%clk 0:02:31]} 20. Rad1 {[%clk 0:01:59]}  Qc6 {[%clk 0:02:27]} 21. Be7 {[%clk 0:01:50]}  Bxe7 {[%clk 0:02:27]} 22. Rxe7 {[%clk 0:01:51]}  Qf6 {[%clk 0:02:18]} 23. Rde1 {[%clk 0:01:34]}  Rfd8 {[%clk 0:02:11]} 24. Ne5 {[%clk 0:01:22]}  Ng5 {[%clk 0:01:29]} 25. h4 {[%clk 0:01:15]}  Kg8 {[%clk 0:01:26]} 26. Nd7 {[%clk 0:01:04]}  Nf3+ {[%clk 0:00:51]} 27. gxf3 {[%clk 0:01:01]}  Qxh4 {[%clk 0:00:51]} 28. Qf5 {[%clk 0:00:55]}  f6 {[%clk 0:00:48]} 29. Qg6 {[%clk 0:00:38]}  Qg5+ {[%clk 0:00:42]} 30. Qxg5 {[%clk 0:00:38]}  fxg5 {[%clk 0:00:43]} 31. R1e6 {[%clk 0:00:38]}  Kh7 {[%clk 0:00:36]} 32. Nf6+ {[%clk 0:00:35]}  Kg6 {[%clk 0:00:36]} 33. Ng4+ {[%clk 0:00:35]}  Kh7 {[%clk 0:00:30]} 34. Nf6+ {[%clk 0:00:30]}  Kg6 {[%clk 0:00:30]} 35. Nd5+ {[%clk 0:00:30]}  Kf5 {[%clk 0:00:25]} 36. c4 {[%clk 0:00:29]}  Rh8 {[%clk 0:00:18]} 37. Re5+ {[%clk 0:00:29]}  Kg6 {[%clk 0:00:18]} 38. R7e6+ {[%clk 0:00:27]}  Kf7 {[%clk 0:00:18]} 39. Re7+ {[%clk 0:00:27]}  Kg6 {[%clk 0:00:18]} 40. Kg2 {[%clk 0:00:27]}  Rh4 {[%clk 0:00:17]} 41. Rd7 {[%clk 0:00:26]}  Rxc4 {[%clk 0:00:16]} 42. Rd6+ {[%clk 0:00:26]}  Kh7 {[%clk 0:00:17]} 43. Rxg5 {[%clk 0:00:26]}  Rf8 {[%clk 0:00:16]} 44. Rd7 {[%clk 0:00:26]}  Rd4 {[%clk 0:00:14]} 45. Rdxg7+ {[%clk 0:00:25]}  Kh6 {[%clk 0:00:14]} 46. Ne3 {[%clk 0:00:25]}  Rdf4 {[%clk 0:00:12]} 47. Ng4+ {[%clk 0:00:25]}  Rxg4+ {[%clk 0:00:12]} 48. fxg4 {[%clk 0:00:26]}  Rf6 {[%clk 0:00:11]} 49. f3 {[%clk 0:00:25]}  a6 {[%clk 0:00:11]} 50. Rg8 {[%clk 0:00:25]}  b5 {[%clk 0:00:11]} 51. Rh5# {[%clk 0:00:25]} 1-0


[Site "https://www.chess.com"]

[Event "Titled Tuesday Blitz January 31 Late 2023"]
[White "Marczuk, Dominik"]
[Black "Gomes, Luiz Alexandre de Souza"]
[WhiteFideId "1111264"]
[BlackFideId "2102790"]
[WhiteElo "2253"]
[BlackElo "2254"]
[Result "0-1"]
[Round "05"]
[TimeControl "180+2"]
[Date "2023.01.31"]
[WhiteClock "0:00:11"]
[BlackClock "0:01:30"]

1. e4 {[%clk 0:03:00]}  c5 {[%clk 0:02:59]} 2. Nf3 {[%clk 0:03:00]}  d6 {[%clk 0:02:58]} 3. d4 {[%clk 0:03:01]}  cxd4 {[%clk 0:02:58]} 4. Nxd4 {[%clk 0:03:01]}  Nf6 {[%clk 0:02:58]} 5. Nc3 {[%clk 0:03:02]}  e6 {[%clk 0:02:59]} 6. Be3 {[%clk 0:03:01]}  Nc6 {[%clk 0:02:55]} 7. f3 {[%clk 0:02:58]}  Be7 {[%clk 0:02:54]} 8. Qd2 {[%clk 0:02:58]}  h5 {[%clk 0:02:53]} 9. O-O-O {[%clk 0:02:58]}  a6 {[%clk 0:02:52]} 10. Kb1 {[%clk 0:02:57]}  Qc7 {[%clk 0:02:52]} 11. Be2 {[%clk 0:02:56]}  Bd7 {[%clk 0:02:52]} 12. h3 {[%clk 0:02:51]}  h4 {[%clk 0:02:52]} 13. Nb3 {[%clk 0:02:50]}  Rc8 {[%clk 0:02:51]} 14. Na4 {[%clk 0:02:17]}  Ne5 {[%clk 0:02:46]} 15. Nb6 {[%clk 0:02:14]}  Rd8 {[%clk 0:02:46]} 16. Rhe1 {[%clk 0:01:23]}  Bc6 {[%clk 0:02:45]} 17. Qa5 {[%clk 0:01:10]}  Ned7 {[%clk 0:02:44]} 18. Nxd7 {[%clk 0:01:03]}  Rxd7 {[%clk 0:02:44]} 19. Bb6 {[%clk 0:00:59]}  Qc8 {[%clk 0:02:44]} 20. Nd4 {[%clk 0:00:58]}  Rh5 {[%clk 0:02:43]} 21. Qd2 {[%clk 0:00:53]}  Rh8 {[%clk 0:02:39]} 22. Qe3 {[%clk 0:00:50]}  g6 {[%clk 0:02:36]} 23. Bf1 {[%clk 0:00:49]}  e5 {[%clk 0:02:36]} 24. Nb3 {[%clk 0:00:45]}  Kf8 {[%clk 0:02:34]} 25. c4 {[%clk 0:00:43]}  Kg7 {[%clk 0:02:32]} 26. Rd2 {[%clk 0:00:32]}  Nh5 {[%clk 0:02:26]} 27. Red1 {[%clk 0:00:30]}  Nf4 {[%clk 0:02:26]} 28. Qc3 {[%clk 0:00:25]}  f6 {[%clk 0:02:23]} 29. Na5 {[%clk 0:00:25]}  Bd8 {[%clk 0:02:09]} 30. Bxd8 {[%clk 0:00:24]}  Rhxd8 {[%clk 0:02:10]} 31. Nxc6 {[%clk 0:00:25]}  Qxc6 {[%clk 0:02:10]} 32. c5 {[%clk 0:00:19]}  dxc5 {[%clk 0:02:06]} 33. Rxd7+ {[%clk 0:00:18]}  Rxd7 {[%clk 0:02:07]} 34. Rxd7+ {[%clk 0:00:19]}  Qxd7 {[%clk 0:02:07]} 35. Qxc5 {[%clk 0:00:19]}  Qd1+ {[%clk 0:02:06]} 36. Qc1 {[%clk 0:00:20]}  Qxc1+ {[%clk 0:02:03]} 37. Kxc1 {[%clk 0:00:21]}  Kf7 {[%clk 0:02:03]} 38. Kc2 {[%clk 0:00:21]}  Ke7 {[%clk 0:02:04]} 39. Kc3 {[%clk 0:00:22]}  Kd6 {[%clk 0:02:04]} 40. Kb4 {[%clk 0:00:21]}  Kc6 {[%clk 0:02:02]} 41. a4 {[%clk 0:00:21]}  b6 {[%clk 0:01:58]} 42. Bxa6 {[%clk 0:00:18]}  Nxg2 {[%clk 0:01:57]} 43. Bf1 {[%clk 0:00:18]}  Nf4 {[%clk 0:01:54]} 44. Kc4 {[%clk 0:00:17]}  Ne6 {[%clk 0:01:52]} 45. Be2 {[%clk 0:00:14]}  Nd4 {[%clk 0:01:44]} 46. Bd1 {[%clk 0:00:14]}  Ne6 {[%clk 0:01:42]} 47. Be2 {[%clk 0:00:14]}  Ng5 {[%clk 0:01:35]} 48. b4 {[%clk 0:00:10]}  Nxh3 {[%clk 0:01:35]} 49. a5 {[%clk 0:00:09]}  bxa5 {[%clk 0:01:35]} 50. bxa5 {[%clk 0:00:10]}  Nf4 {[%clk 0:01:35]} 51. Bf1 {[%clk 0:00:10]}  h3 {[%clk 0:01:34]} 52. Bxh3 {[%clk 0:00:09]}  Nxh3 {[%clk 0:01:34]} 53. a6 {[%clk 0:00:09]}  Kb6 {[%clk 0:01:34]} 54. Kd5 {[%clk 0:00:10]}  Ng5 {[%clk 0:01:33]} 55. Kd6 {[%clk 0:00:07]}  Nxf3 {[%clk 0:01:33]} 56. Ke6 {[%clk 0:00:08]}  g5 {[%clk 0:01:31]} 57. Kf5 {[%clk 0:00:06]}  Kxa6 {[%clk 0:01:30]} 58. Kxf6 {[%clk 0:00:07]}  g4 {[%clk 0:01:29]} 59. Kf5 {[%clk 0:00:08]}  g3 {[%clk 0:01:29]} 60. Kg4 {[%clk 0:00:09]}  g2 {[%clk 0:01:30]} 61. Kxf3 {[%clk 0:00:10]}  g1=Q {[%clk 0:01:30]} 62. Ke2 {[%clk 0:00:11]} 0-1


[Site "https://www.chess.com"]

[Event "Titled Tuesday Blitz January 31 Late 2023"]
[White "Itkis, Boris"]
[Black "Travadon, Loic"]
[WhiteFideId "1209167"]
[BlackFideId "26092131"]
[WhiteElo "2329"]
[BlackElo "2461"]
[Result "0-1"]
[Round "05"]
[TimeControl "180+2"]
[Date "2023.01.31"]
[WhiteClock "0:00:04"]
[BlackClock "0:00:30"]

1. c4 {[%clk 0:02:59]}  e5 {[%clk 0:02:59]} 2. Nf3 {[%clk 0:02:55]}  Nc6 {[%clk 0:02:58]} 3. Nc3 {[%clk 0:02:55]}  Bc5 {[%clk 0:02:13]} 4. e3 {[%clk 0:02:47]}  d6 {[%clk 0:02:13]} 5. d4 {[%clk 0:02:47]}  Bb4 {[%clk 0:02:12]} 6. Bd3 {[%clk 0:02:46]}  f5 {[%clk 0:02:08]} 7. Bc2 {[%clk 0:02:11]}  Nf6 {[%clk 0:02:05]} 8. O-O {[%clk 0:02:09]}  O-O {[%clk 0:02:05]} 9. Nd5 {[%clk 0:02:04]}  Ba5 {[%clk 0:01:53]} 10. Rb1 {[%clk 0:01:38]}  e4 {[%clk 0:01:53]} 11. Ne1 {[%clk 0:01:32]}  Bxe1 {[%clk 0:01:49]} 12. Nxf6+ {[%clk 0:01:25]}  Qxf6 {[%clk 0:01:49]} 13. Qxe1 {[%clk 0:01:26]}  Qg6 {[%clk 0:01:45]} 14. b4 {[%clk 0:01:17]}  Ne7 {[%clk 0:01:41]} 15. d5 {[%clk 0:01:14]}  Qh6 {[%clk 0:01:38]} 16. Bb2 {[%clk 0:01:11]}  Ng6 {[%clk 0:01:37]} 17. f3 {[%clk 0:01:05]}  exf3 {[%clk 0:01:30]} 18. Rxf3 {[%clk 0:01:05]}  Ne5 {[%clk 0:01:29]} 19. Rh3 {[%clk 0:00:59]}  Qg5 {[%clk 0:01:27]} 20. Rg3 {[%clk 0:00:59]}  Qh6 {[%clk 0:01:25]} 21. Rh3 {[%clk 0:00:58]}  Qg6 {[%clk 0:01:22]} 22. Rg3 {[%clk 0:00:58]}  Qf7 {[%clk 0:01:22]} 23. Qe2 {[%clk 0:00:53]}  Bd7 {[%clk 0:01:21]} 24. Rf1 {[%clk 0:00:53]}  Rae8 {[%clk 0:01:21]} 25. Bd4 {[%clk 0:00:51]}  b6 {[%clk 0:01:19]} 26. Rf4 {[%clk 0:00:36]}  g6 {[%clk 0:01:12]} 27. Qf1 {[%clk 0:00:20]}  Qe7 {[%clk 0:01:11]} 28. Bxf5 {[%clk 0:00:11]}  Bxf5 {[%clk 0:00:59]} 29. Rxf5 {[%clk 0:00:12]}  Rxf5 {[%clk 0:00:57]} 30. Qxf5 {[%clk 0:00:13]}  Rf8 {[%clk 0:00:49]} 31. Qc2 {[%clk 0:00:12]}  Qf7 {[%clk 0:00:47]} 32. Qe2 {[%clk 0:00:09]}  Qf5 {[%clk 0:00:46]} 33. h3 {[%clk 0:00:07]}  Qe4 {[%clk 0:00:45]} 34. Bxe5 {[%clk 0:00:06]}  dxe5 {[%clk 0:00:43]} 35. Rf3 {[%clk 0:00:07]}  Rxf3 {[%clk 0:00:42]} 36. gxf3 {[%clk 0:00:04]}  Qb1+ {[%clk 0:00:42]} 37. Kg2 {[%clk 0:00:04]}  Qxb4 {[%clk 0:00:43]} 38. Qc2 {[%clk 0:00:03]}  Kg7 {[%clk 0:00:39]} 39. Kg3 {[%clk 0:00:04]}  Kf6 {[%clk 0:00:39]} 40. h4 {[%clk 0:00:04]}  h5 {[%clk 0:00:38]} 41. Qd3 {[%clk 0:00:03]}  a5 {[%clk 0:00:34]} 42. Qe4 {[%clk 0:00:03]}  Qe1+ {[%clk 0:00:34]} 43. Kg2 {[%clk 0:00:04]}  Qe2+ {[%clk 0:00:34]} 44. Kg3 {[%clk 0:00:04]}  Qxa2 {[%clk 0:00:30]} 45. f4 {[%clk 0:00:04]}  Qb2 {[%clk 0:00:29]} 46. fxe5+ {[%clk 0:00:02]}  Qxe5+ {[%clk 0:00:30]} 47. Qxe5+ {[%clk 0:00:03]}  Kxe5 {[%clk 0:00:30]} 48. Kf3 {[%clk 0:00:03]}  a4 {[%clk 0:00:30]} 49. Ke2 {[%clk 0:00:04]}  a3 {[%clk 0:00:29]} 50. Kd2 {[%clk 0:00:04]}  a2 {[%clk 0:00:30]} 0-1


[Site "https://www.chess.com"]

[Event "Titled Tuesday Blitz January 31 Late 2023"]
[White "Hajiyev, Kanan"]
[Black "Onslow, Alfie"]
[WhiteFideId "13404148"]
[BlackFideId "436976"]
[WhiteElo "2197"]
[BlackElo "2157"]
[Result "1-0"]
[Round "05"]
[TimeControl "180+2"]
[Date "2023.01.31"]
[WhiteClock "0:00:17"]
[BlackClock "0:00:21"]

1. d4 {[%clk 0:01:10]}  Nf6 {[%clk 0:02:55]} 2. Nf3 {[%clk 0:01:11]}  c5 {[%clk 0:02:49]} 3. e3 {[%clk 0:01:10]}  b6 {[%clk 0:02:45]} 4. Be2 {[%clk 0:01:10]}  Bb7 {[%clk 0:02:45]} 5. O-O {[%clk 0:01:11]}  e6 {[%clk 0:02:46]} 6. b3 {[%clk 0:01:11]}  Be7 {[%clk 0:02:46]} 7. Bb2 {[%clk 0:01:12]}  O-O {[%clk 0:02:46]} 8. c4 {[%clk 0:01:12]}  cxd4 {[%clk 0:02:44]} 9. Nxd4 {[%clk 0:01:13]}  Nc6 {[%clk 0:02:43]} 10. Bf3 {[%clk 0:01:13]}  Qc7 {[%clk 0:02:40]} 11. Nb5 {[%clk 0:01:08]}  Qb8 {[%clk 0:02:39]} 12. N1c3 {[%clk 0:01:08]}  a6 {[%clk 0:02:35]} 13. Nd4 {[%clk 0:01:08]}  Ne5 {[%clk 0:02:30]} 14. Bxb7 {[%clk 0:01:07]}  Qxb7 {[%clk 0:02:31]} 15. h3 {[%clk 0:00:58]}  Rac8 {[%clk 0:02:24]} 16. Qe2 {[%clk 0:00:57]}  Rfd8 {[%clk 0:02:22]} 17. Rfd1 {[%clk 0:00:54]}  d5 {[%clk 0:02:16]} 18. cxd5 {[%clk 0:00:55]}  Nxd5 {[%clk 0:02:16]} 19. Nxd5 {[%clk 0:00:48]}  Rxd5 {[%clk 0:02:17]} 20. e4 {[%clk 0:00:39]}  Rd7 {[%clk 0:02:06]} 21. Nxe6 {[%clk 0:00:33]}  fxe6 {[%clk 0:01:30]} 22. Bxe5 {[%clk 0:00:31]}  Rcd8 {[%clk 0:01:20]} 23. Rxd7 {[%clk 0:00:28]}  Rxd7 {[%clk 0:01:19]} 24. Qg4 {[%clk 0:00:26]}  Bf8 {[%clk 0:01:06]} 25. Qxe6+ {[%clk 0:00:25]}  Rf7 {[%clk 0:01:07]} 26. f3 {[%clk 0:00:21]}  h6 {[%clk 0:00:51]} 27. Rc1 {[%clk 0:00:20]}  Kh7 {[%clk 0:00:50]} 28. Rc8 {[%clk 0:00:17]}  Re7 {[%clk 0:00:39]} 29. Qf5+ {[%clk 0:00:17]}  g6 {[%clk 0:00:23]} 30. Qxf8 {[%clk 0:00:17]}  Rxe5 {[%clk 0:00:21]} 31. Qh8# {[%clk 0:00:17]} 1-0


[Site "https://www.chess.com"]

[Event "Titled Tuesday Blitz January 31 Late 2023"]
[White "Aguilar, Juan"]
[Black "Gardezi, Arsal"]
[WhiteFideId "3800091"]
[BlackFideId "30949521"]
[WhiteElo "2254"]
[BlackElo "2093"]
[Result "1-0"]
[Round "05"]
[TimeControl "180+2"]
[Date "2023.01.31"]
[WhiteClock "0:00:32"]
[BlackClock "0:00:06"]

1. Nf3 {[%clk 0:03:00]}  g6 {[%clk 0:02:57]} 2. g3 {[%clk 0:03:01]}  Bg7 {[%clk 0:02:58]} 3. Bg2 {[%clk 0:03:01]}  Nf6 {[%clk 0:02:58]} 4. O-O {[%clk 0:03:01]}  O-O {[%clk 0:02:59]} 5. d3 {[%clk 0:03:01]}  d6 {[%clk 0:02:57]} 6. e4 {[%clk 0:03:00]}  Nbd7 {[%clk 0:02:56]} 7. Re1 {[%clk 0:02:58]}  e5 {[%clk 0:02:57]} 8. c3 {[%clk 0:02:58]}  c6 {[%clk 0:02:56]} 9. d4 {[%clk 0:02:57]}  exd4 {[%clk 0:02:56]} 10. cxd4 {[%clk 0:02:57]}  Re8 {[%clk 0:02:57]} 11. Nc3 {[%clk 0:02:57]}  b5 {[%clk 0:02:42]} 12. a3 {[%clk 0:02:55]}  Bb7 {[%clk 0:02:41]} 13. Bf4 {[%clk 0:02:37]}  Nb6 {[%clk 0:02:37]} 14. e5 {[%clk 0:02:35]}  Nfd5 {[%clk 0:02:28]} 15. Bg5 {[%clk 0:02:34]}  Qd7 {[%clk 0:02:28]} 16. Ne4 {[%clk 0:02:31]}  dxe5 {[%clk 0:01:56]} 17. dxe5 {[%clk 0:02:27]}  Nc4 {[%clk 0:01:46]} 18. Nc5 {[%clk 0:02:10]}  Qc7 {[%clk 0:01:45]} 19. Nxb7 {[%clk 0:01:58]}  Qxb7 {[%clk 0:01:45]} 20. Rc1 {[%clk 0:01:40]}  Nxe5 {[%clk 0:01:45]} 21. Nxe5 {[%clk 0:01:33]}  Rxe5 {[%clk 0:01:46]} 22. Rxe5 {[%clk 0:01:28]}  Bxe5 {[%clk 0:01:46]} 23. Qc2 {[%clk 0:01:26]}  Re8 {[%clk 0:00:22]} 24. h4 {[%clk 0:01:18]}  b4 {[%clk 0:00:19]} 25. axb4 {[%clk 0:01:10]}  Nxb4 {[%clk 0:00:18]} 26. Qc4 {[%clk 0:01:08]}  Bg7 {[%clk 0:00:17]} 27. h5 {[%clk 0:01:02]}  h6 {[%clk 0:00:14]} 28. hxg6 {[%clk 0:00:57]}  hxg5 {[%clk 0:00:14]} 29. gxf7+ {[%clk 0:00:58]}  Qxf7 {[%clk 0:00:14]} 30. Qxb4 {[%clk 0:00:58]}  Qf6 {[%clk 0:00:12]} 31. Qc4+ {[%clk 0:00:55]}  Kh8 {[%clk 0:00:11]} 32. b3 {[%clk 0:00:48]}  Re6 {[%clk 0:00:06]} 33. Bxc6 {[%clk 0:00:38]}  Rd6 {[%clk 0:00:06]} 34. Kg2 {[%clk 0:00:33]}  Rd1 {[%clk 0:00:06]} 35. Rxd1 {[%clk 0:00:32]} 1-0


[Site "https://www.chess.com"]

[Event "Titled Tuesday Blitz January 31 Late 2023"]
[White "Buchenau, Frank"]
[Black "Osmonbekov, Talaibek"]
[WhiteFideId "4604350"]
[BlackFideId "2017253"]
[WhiteElo "2222"]
[BlackElo "2137"]
[Result "1-0"]
[Round "05"]
[TimeControl "180+2"]
[Date "2023.01.31"]
[WhiteClock "0:00:56"]
[BlackClock "0:00:07"]

1. e4 {[%clk 0:03:00]}  c5 {[%clk 0:02:59]} 2. Nf3 {[%clk 0:03:00]}  d6 {[%clk 0:02:59]} 3. Bb5+ {[%clk 0:03:00]}  Nd7 {[%clk 0:02:59]} 4. O-O {[%clk 0:03:00]}  a6 {[%clk 0:02:59]} 5. Bd3 {[%clk 0:03:00]}  Ngf6 {[%clk 0:02:50]} 6. Re1 {[%clk 0:03:00]}  g6 {[%clk 0:02:48]} 7. c3 {[%clk 0:02:59]}  Bg7 {[%clk 0:02:47]} 8. Bf1 {[%clk 0:02:56]}  O-O {[%clk 0:02:43]} 9. d4 {[%clk 0:02:56]}  e5 {[%clk 0:02:42]} 10. dxe5 {[%clk 0:02:54]}  Nxe5 {[%clk 0:02:38]} 11. Nxe5 {[%clk 0:02:48]}  dxe5 {[%clk 0:02:37]} 12. f3 {[%clk 0:02:28]}  Qe7 {[%clk 0:02:22]} 13. c4 {[%clk 0:02:26]}  Nh5 {[%clk 0:02:15]} 14. Nc3 {[%clk 0:02:25]}  Be6 {[%clk 0:02:15]} 15. g3 {[%clk 0:02:15]}  f5 {[%clk 0:02:07]} 16. Nd5 {[%clk 0:02:06]}  Qf7 {[%clk 0:02:03]} 17. exf5 {[%clk 0:01:52]}  gxf5 {[%clk 0:01:58]} 18. f4 {[%clk 0:01:51]}  e4 {[%clk 0:01:44]} 19. Be2 {[%clk 0:01:46]}  Bd4+ {[%clk 0:01:36]} 20. Kg2 {[%clk 0:01:44]}  Nf6 {[%clk 0:01:34]} 21. Be3 {[%clk 0:01:29]}  Bxd5 {[%clk 0:00:55]} 22. Bxd4 {[%clk 0:01:25]}  cxd4 {[%clk 0:00:44]} 23. cxd5 {[%clk 0:01:24]}  Qxd5 {[%clk 0:00:43]} 24. Rc1 {[%clk 0:01:22]}  Rac8 {[%clk 0:00:42]} 25. Qa4 {[%clk 0:01:19]}  d3 {[%clk 0:00:36]} 26. Bd1 {[%clk 0:01:15]}  Kh8 {[%clk 0:00:18]} 27. Bb3 {[%clk 0:01:13]}  Qd6 {[%clk 0:00:15]} 28. Rxc8 {[%clk 0:01:02]}  Rxc8 {[%clk 0:00:14]} 29. Qa5 {[%clk 0:01:02]}  Ng4 {[%clk 0:00:13]} 30. Qxf5 {[%clk 0:01:00]}  d2 {[%clk 0:00:12]} 31. Qxc8+ {[%clk 0:00:59]}  Kg7 {[%clk 0:00:11]} 32. Qxg4+ {[%clk 0:00:59]}  Kf8 {[%clk 0:00:10]} 33. Rxe4 {[%clk 0:00:59]}  d1=Q {[%clk 0:00:07]} 34. Qg8# {[%clk 0:00:56]} 1-0


[Site "https://www.chess.com"]

[Event "Titled Tuesday Blitz January 31 Late 2023"]
[White "Yanayt, Eugene"]
[Black "Boder, Jan"]
[WhiteFideId "2020165"]
[BlackFideId "16243226"]
[WhiteElo "2004"]
[BlackElo "2294"]
[Result "0-1"]
[Round "05"]
[TimeControl "180+2"]
[Date "2023.01.31"]
[WhiteClock "0:00:04"]
[BlackClock "0:00:04"]

1. d4 {[%clk 0:02:47]}  Nf6 {[%clk 0:02:55]} 2. c4 {[%clk 0:02:44]}  c5 {[%clk 0:02:54]} 3. d5 {[%clk 0:02:44]}  b5 {[%clk 0:02:47]} 4. cxb5 {[%clk 0:02:39]}  a6 {[%clk 0:02:46]} 5. bxa6 {[%clk 0:02:38]}  g6 {[%clk 0:02:47]} 6. Nc3 {[%clk 0:02:36]}  Bg7 {[%clk 0:02:46]} 7. g3 {[%clk 0:02:33]}  O-O {[%clk 0:02:46]} 8. Bg2 {[%clk 0:02:33]}  d6 {[%clk 0:02:47]} 9. Nf3 {[%clk 0:02:32]}  Nxa6 {[%clk 0:02:47]} 10. e4 {[%clk 0:02:30]}  Qa5 {[%clk 0:02:44]} 11. O-O {[%clk 0:02:29]}  Nb4 {[%clk 0:02:43]} 12. Re1 {[%clk 0:02:26]}  Ba6 {[%clk 0:02:43]} 13. e5 {[%clk 0:02:25]}  Ng4 {[%clk 0:02:41]} 14. exd6 {[%clk 0:02:22]}  exd6 {[%clk 0:02:42]} 15. Ne4 {[%clk 0:02:20]}  Nd3 {[%clk 0:02:30]} 16. Re2 {[%clk 0:02:19]}  Qb6 {[%clk 0:01:51]} 17. Rb1 {[%clk 0:02:06]}  Rae8 {[%clk 0:01:37]} 18. h3 {[%clk 0:01:44]}  Rxe4 {[%clk 0:01:35]} 19. Rxe4 {[%clk 0:01:42]}  Ngxf2 {[%clk 0:01:34]} 20. Qe2 {[%clk 0:01:31]}  Nxe4 {[%clk 0:01:09]} 21. Qxe4 {[%clk 0:01:32]}  Nxc1 {[%clk 0:00:54]} 22. Rxc1 {[%clk 0:01:28]}  Qxb2 {[%clk 0:00:54]} 23. Rc2 {[%clk 0:01:26]}  Qa1+ {[%clk 0:00:45]} 24. Kh2 {[%clk 0:01:24]}  Bf1 {[%clk 0:00:42]} 25. Ng5 {[%clk 0:01:20]}  h6 {[%clk 0:00:38]} 26. Nf3 {[%clk 0:01:16]}  Bxg2 {[%clk 0:00:31]} 27. Rxg2 {[%clk 0:01:13]}  Ra8 {[%clk 0:00:31]} 28. h4 {[%clk 0:01:01]}  Kh7 {[%clk 0:00:23]} 29. h5 {[%clk 0:01:00]}  Rxa2 {[%clk 0:00:23]} 30. hxg6+ {[%clk 0:00:59]}  fxg6 {[%clk 0:00:23]} 31. Nh4 {[%clk 0:00:58]}  Rxg2+ {[%clk 0:00:22]} 32. Kxg2 {[%clk 0:00:58]}  Qf6 {[%clk 0:00:22]} 33. Nf3 {[%clk 0:00:52]}  Qf5 {[%clk 0:00:20]} 34. Qe7 {[%clk 0:00:50]}  Qf6 {[%clk 0:00:19]} 35. Qd7 {[%clk 0:00:49]}  c4 {[%clk 0:00:19]} 36. g4 {[%clk 0:00:47]}  c3 {[%clk 0:00:19]} 37. Qc7 {[%clk 0:00:47]}  Qf4 {[%clk 0:00:16]} 38. g5 {[%clk 0:00:43]}  hxg5 {[%clk 0:00:15]} 39. Qe7 {[%clk 0:00:41]}  c2 {[%clk 0:00:14]} 40. Nxg5+ {[%clk 0:00:40]}  Kh6 {[%clk 0:00:07]} 41. Nf7+ {[%clk 0:00:40]}  Kh5 {[%clk 0:00:07]} 42. Nxd6 {[%clk 0:00:08]}  c1=Q {[%clk 0:00:04]} 43. Qe2+ {[%clk 0:00:06]}  Qg4+ {[%clk 0:00:04]} 44. Qxg4+ {[%clk 0:00:05]}  Kxg4 {[%clk 0:00:04]} 45. Nf7 {[%clk 0:00:04]}  Qd2+ {[%clk 0:00:04]} 46. Kf1 {[%clk 0:00:04]}  Bd4 {[%clk 0:00:04]} 47. Nh6+ {[%clk 0:00:02]}  Qxh6 {[%clk 0:00:04]} 48. Ke2 {[%clk 0:00:01]}  Qe3+ {[%clk 0:00:04]} 49. Kd1 {[%clk 0:00:02]}  Bc3 {[%clk 0:00:05]} 50. Kc2 {[%clk 0:00:02]}  Qd2+ {[%clk 0:00:05]} 51. Kb3 {[%clk 0:00:03]}  Bd4 {[%clk 0:00:05]} 52. Ka4 {[%clk 0:00:04]}  Qc3 {[%clk 0:00:05]} 53. Kb5 {[%clk 0:00:04]}  Qc5+ {[%clk 0:00:04]} 0-1


[Site "https://www.chess.com"]